[Event "45th Guernsey Open 2019"]
[Site "Vale"]
[Date "2019.10.22"]
[Round "3.10"]
[White "Stanners, Michael J"]
[Black "Strade, Arita"]
[Result "0-1"]
[ECO "A01"]
[WhiteElo "1752"]
[BlackElo "1882"]
[Annotator "NA RC"]
[PlyCount "109"]
[EventDate "2019.10.20"]
[EventCountry "GCI"]
[SourceTitle "playchess.com"]
[Source "ChessBase"]
[SourceQuality "1"]
[TimeControl "40/6000+30:2400+30"]

{[%evp 17,109,-15,8,32767,32767,32767,24,32767,12,14,0,32767,32767,32767,-62,-89,32767,-85,-83,32767,-77,32767,32767,-133,-132,-143,-37,32767,32767,-116,-121,-202,-188,-242,-254,-291,-266,32767,-212,-189,-89,32767,-108,-130,-115,-116,78,81,83,32767,32767,-143,79,-209,32767,32767,32767,-303,-11,32767,32767,-323,0,0,109,-350,-368,-385,-432,-736,32767,-331,-330,-360,-383,-381,-340,32767,-603,-1031,-1174,-1307,-1360,-5285,-29974,-29995,-29975,-29996,-29992,32767,32767,-29997,-29997,-29997]} 1. b3 {[%emt 0:00:00]} d5 {[%emt 0:02:52]} 2. Bb2 {[%emt 0:00:00]} Bf5 {[%emt 0:01:29]} 3. e3 {[%emt 0:01:26]} e6 {[%emt 0:01:06]} 4. Nf3 {[%emt 0:01:22]} h6 {[%emt 0:01:19]} 5. Be2 {[%emt 0:04:21]} Nf6 {[%emt 0:02:16]} 6. O-O {[%emt 0:02:43]} Bd6 {[%emt 0:02:30] A06: Réti Opening:1 Nf3 d5} 7. d3 {[%emt 0:04:01]} (7. c4 O-O 8. Nc3 c6 9. d3 Qe7 10. a3 Nbd7 11. b4 Rad8 12. Qb3 a6 13. Rad1 Rfe8 14. Rfe1 {1-0 (58) Vachier Lagrave,M (2796)-So,W (2812) Leuven 2017}) 7... O-O {[%emt 0:02:13]} 8. Nbd2 {[%emt 0:00:18]} Nbd7 {[%emt 0:02:03]} 9. d4 {[%emt 0:10:36]} Ne4 {[%emt 0:03:25]} 10. Nxe4 $146 {[%emt 0:06:11]} ({Predecessor:} 10. c4 c6 11. Ne5 Nxe5 12. dxe5 Bc5 13. Nxe4 Bxe4 14. Bd4 {0-1 (40) Buti,E (2082)-Mihalyfi,G (2143) Hungary 2004}) 10... dxe4 {[%emt 0:01:41]} 11. Ne5 {[%emt 0:01:22]} Nf6 {[%emt 0:03:22]} 12. c4 {[%emt 0:03:20]} c6 {[%emt 0:03:04]} 13. h3 {[%emt 0:05:59]} Qe7 {[%emt 0:02:28]} 14. a3 {[%emt 0:02:53]} Rad8 {[%emt 0:02:00]} 15. Ng4 {[%emt 0:03:24]} Nd7 {[%emt 0:06:35]} 16. Nh2 {[%emt 0:10:11]} Qg5 {[%emt 0:02:59]} 17. Bg4 {[%emt 0:01:51]} Bh7 {[%emt 0:01:37]} 18. Be2 {[%emt 0:05:10]} Bc7 {[%emt 0:11:42]} 19. Qc1 {[%emt 0:03:51]} e5 {[%emt 0:10:03]} 20. d5 {[%emt 0:02:21]} cxd5 {[%emt 0:00:22]} 21. cxd5 {[%emt 0:00:11]} Bb6 {[%emt 0:01:05]} (21... Bd6 $17 22. Bc3 Bf5) 22. Qd2 {[%emt 0:03:09]} f5 {[%emt 0:03:51]} 23. Bc4 {[%emt 0:06:12]} Kh8 {[%emt 0:03:08]} 24. b4 {[%emt 0:02:32]} (24. Qe2 $17) 24... f4 {[%emt 0:03:07]} 25. Rae1 {[%emt 0:00:32]} f3 {[%emt 0:01:50]} 26. g4 {[%emt 0:07:24]} Bg8 {[%emt 0:08:36]} ({Don't play} 26... Qh4 27. Kh1 $19) 27. Rc1 {[%emt 0:04:08]} h5 {[%emt 0:01:35]} ({Don't play} 27... Qh4 28. Kh1 $19) 28. Kh1 {[%emt 0:00:21]} Qh4 {[%emt 0:07:06]} (28... Nf6 $19 {and Black stays clearly on top.} 29. d6 Bxc4 30. Rxc4 Rfe8) 29. Rg1 {[%emt 0:03:36]} Qxh3 {[%emt 0:01:29]} 30. Rg3 {[%emt 0:00:52]} Qh4 {[%emt 0:00:12]} 31. Rcg1 {[%emt 0:02:25]} hxg4 $2 {[%emt 0:06:12]} (31... Nf6 $17 {and life is bright.} 32. Bxe5 Bxd5 33. gxh5 Bxc4 {[%mdl 64] Discovered Attack}) 32. Rxg4 {[%emt 0:00:11] Double Attack} Qh6 {[%emt 0:02:21]} 33. R1g3 {[%emt 0:02:58]} Rf5 {[%emt 0:02:24]} 34. Rg6 {[%emt 0:03:31] [#]} Qh4 $2 {[%emt 0:03:31]} (34... Qh7 $1 $19 35. Qc1 Nf6) 35. R3g4 $2 {[%emt 0:00:49]} (35. Qe1 $16 {and life is bright.}) 35... Qh5 {[%emt 0:01:01]} 36. Qe1 {[%emt 0:02:06]} Nf6 {[%emt 0:01:35]} 37. Rg3 {[%emt 0:01:47]} Ne8 $2 {[%emt 0:01:51]} ({And not} 37... Nxd5 38. Rxg7 Nf6 39. Bxg8 $11) (37... Bxd5 $19 38. Bxd5 Rxd5) 38. Bf1 {[%emt 0:01:14]} Bh7 {[%emt 0:00:18]} 39. R6g4 {[%emt 0:01:37]} (39. Re6 {was the only defense.}) 39... Rd6 $2 {[%emt 0:01:47]} ({Stronger than} 39... Rxd5 40. Rh3 $14) (39... Nf6 $19 40. Rxg7 Qh6) 40. Rh3 {[%emt 0:01:29]} Qf7 {[%emt 0:00:37]} (40... Rh6 $1 $11 {keeps the balance.} 41. Rgg3 (41. Rxh5 $2 Rfxh5 42. Bh3 Bf5 $19) (41. Rxe4 $2 Rg5 $19) 41... Qf7) 41. Bc4 $2 {[%emt 0:41:24]} (41. Rxe4 $16 Nf6 42. Reh4 (42. Rxe5 Rxd5 43. Rxf5 Rxf5 $16)) 41... Rh5 {[%emt 0:01:36]} 42. Qf1 {[%emt 0:00:00]} Bd8 {[%emt 0:02:27]} 43. a4 $2 {[%emt 0:00:00]} (43. Rgg3) 43... Nf6 {[%emt 0:08:46]} 44. Rgg3 {[%emt 0:00:00]} Qd7 {[%emt 0:10:29]} 45. Rxh5 {[%emt 0:00:00]} Nxh5 {[%emt 0:00:32]} 46. Rh3 Rh6 {[%emt 0:02:19]} 47. Bxe5 {[%emt 0:00:00]} Bf5 {[%emt 0:02:49]} 48. Rg3 {[%emt 0:00:00]} Nxg3+ {[%emt 0:01:18]} 49. Bxg3 {[%emt 0:00:00]} Bc7 {[%emt 0:00:57]} 50. Qg1 {[%emt 0:00:00]} Bh3 {[%emt 0:00:20]} 51. Qe1 {[%emt 0:00:00]} Bg2+ {[%emt 0:00:57]} 52. Kg1 {[%emt 0:00:00]} Bxg3 {[%emt 0:00:12]} 53. fxg3 {[%emt 0:00:00]} Qh3 {[%emt 0:00:18]} 54. Qd2 {[%emt 0:00:00]} Qxh2+ {[%emt 0:00:17] Bf1} 55. Kf2 {[%emt 0:00:00]} 0-1

[Event "45th Guernsey Open 2019"]
[Site "Vale"]
[Date "2019.10.22"]
[Round "3.11"]
[White "Fries-Nielsen, Niels Jorgen"]
[Black "Hoogakker, Peter"]
[Result "0-1"]
[ECO "A00"]
[WhiteElo "2316"]
[BlackElo "1749"]
[Annotator "RC"]
[PlyCount "46"]
[EventDate "2019.10.20"]
[EventCountry "GCI"]
[SourceTitle "playchess.com"]
[Source "ChessBase"]
[SourceQuality "1"]
[TimeControl "40/6000+30:2400+30"]

1. Nc3 {[%emt 0:00:00]} d6 {[%emt 0:00:00]} 2. Nf3 {[%emt 0:00:00]} e5 {[%emt 0:00:49]} 3. e4 {[%emt 0:00:22]} Nf6 {[%emt 0:00:25]} 4. Bb5+ {[%emt 0:00:27]} c6 {[%emt 0:00:48]} 5. Ba4 {[%emt 0:02:24]} b5 {[%emt 0:05:27]} 6. Bb3 {[%emt 0:00:03]} b4 {[%emt 0:01:14]} 7. Ne2 {[%emt 0:00:37]} Nxe4 {[%emt 0:00:50]} 8. d3 {[%emt 0:00:47]} Nc5 {[%emt 0:01:56]} 9. Be3 {[%emt 0:04:39]} Nxb3 {[%emt 0:04:18]} 10. axb3 {[%emt 0:00:09]} c5 {[%emt 0:04:09]} 11. Ng3 {[%emt 0:00:58]} Be7 {[%emt 0:02:34]} 12. O-O {[%emt 0:01:45]} f5 {[%emt 0:06:36]} 13. Bd2 {[%emt 0:04:47]} Nc6 {[%emt 0:05:15]} 14. c3 {[%emt 0:02:28]} f4 {[%emt 0:03:07]} 15. Ne2 {[%emt 0:08:35]} Bg4 {[%emt 0:04:18]} 16. Ne1 {[%emt 0:07:00]} O-O {[%emt 0:06:04]} 17. f3 {[%emt 0:00:14]} Bf5 {[%emt 0:01:04]} 18. d4 {[%emt 0:01:57]} Bh4 {[%emt 0:06:08]} 19. d5 {[%emt 0:02:02]} Ne7 {[%emt 0:01:35]} 20. cxb4 {[%emt 0:05:23]} cxb4 {[%emt 0:04:13]} 21. Bxb4 {[%emt 0:12:33]} Qb6+ {[%emt 0:00:09]} 22. Kh1 {[%emt 0:00:26]} Qxb4 {[%emt 0:00:14]} 23. Nd3 {[%emt 0:00:08]} Qb5 {[%emt 0:01:32]} 0-1

[Event "45th Guernsey Open 2019"]
[Site "Vale"]
[Date "2019.10.23"]
[Round "4.3"]
[White "Collier, David O"]
[Black "Bianco, Valerio"]
[Result "0-1"]
[ECO "D02"]
[WhiteElo "2009"]
[BlackElo "2088"]
[Annotator "NA RC"]
[PlyCount "62"]
[EventDate "2019.10.20"]
[EventType "swiss"]
[EventCountry "GCI"]
[SourceTitle "playchess.com"]
[Source "ChessBase"]
[SourceQuality "1"]
[TimeControl "40/6000+30:2400+30"]

1. d4 {[%emt 0:00:00]} d5 {[%emt 0:00:00]} 2. Nf3 {[%emt 0:00:00]} e6 {[%emt 0:00:00]} 3. g3 {[%emt 0:00:19]} f5 {[%emt 0:00:42]} 4. Bg2 {[%emt 0:00:34]} Nf6 {[%emt 0:00:09]} 5. c4 {[%emt 0:00:22]} Bd6 {[%emt 0:00:35]} 6. O-O {[%emt 0:01:20]} O-O {[%emt 0:00:11]} 7. Nc3 {[%emt 0:01:19]} c6 {[%emt 0:00:08]} 8. b3 {[%emt 0:02:59]} Nbd7 {[%emt 0:04:49]} 9. e3 {[%emt 0:00:28] A90: Dutch Defence: Miscellaneous and Modern Stonewall (with ...Bd6)} Ne4 {[%emt 0:01:29]} 10. Ne2 {[%emt 0:02:05]} b6 {[%emt 0:12:17]} 11. Bb2 {[%emt 0:01:52]} Bb7 {[%emt 0:02:41]} (11... Ba6 12. Rc1 Qf6 13. Nf4 g5 {½-½ (58) Konaplev,A (2376)-Kozionov,K (2452) Sochi 2018}) 12. a4 $146 {[%emt 0:06:12]} ({Predecessor:} 12. Nf4 Qe7 13. Nd3 Rac8 14. Nfe5 Ba6 15. Rc1 Nef6 16. Rc2 Nb8 17. Qc1 Nfd7 {1-0 (66) Riha,O (1947)-Danek,P (2004) Czechia 2009}) 12... a5 {[%emt 0:01:23]} 13. Rc1 {[%emt 0:11:20]} Qe7 {[%emt 0:06:55]} 14. Nd2 {[%emt 0:04:38]} Bb4 {[%emt 0:10:50]} 15. Nb1 {[%emt 0:07:07]} Rfd8 {[%emt 0:03:06]} 16. Nec3 {[%emt 0:07:44]} Rac8 {[%emt 0:05:34]} 17. Na2 {[%emt 0:04:29]} Bd6 {[%emt 0:00:57]} 18. Re1 {[%emt 0:08:34]} dxc4 {[%emt 0:05:20]} 19. bxc4 {[%emt 0:06:12]} Ndf6 {[%emt 0:05:34]} 20. f3 {[%emt 0:08:38]} Ng5 {[%emt 0:03:15]} 21. e4 {[%emt 0:02:42]} fxe4 {[%emt 0:01:02]} 22. fxe4 {[%emt 0:00:12]} e5 {[%emt 0:08:55]} 23. d5 {[%emt 0:05:42]} (23. c5 $17 {was called for.} bxc5 24. Qb3+ Qf7 25. Qxf7+ Nxf7 26. dxc5) 23... Bc5+ {[%emt 0:04:38]} 24. Kh1 {[%emt 0:00:14]} Rc7 {[%emt 0:01:39]} ({Black should try} 24... h5 25. h4 Ng4) 25. h4 $19 {[%emt 0:07:02]} (25. Rc2 $17) 25... Bc8 {[%emt 0:10:35]} 26. hxg5 {[%emt 0:07:30]} Ng4 {[%emt 0:00:05]} 27. Qd2 {[%emt 0:01:27]} Qf7 28. g6 Qxg6 29. Bf3 Qh5+ 30. Kg2 Qh2+ 31. Kf1 Qh5 0-1

[Event "45th Guernsey Open 2019"]
[Site "Vale"]
[Date "2019.10.23"]
[Round "4.4"]
[White "Curtis, John"]
[Black "Purdon, Colin"]
[Result "1/2-1/2"]
[ECO "A48"]
[WhiteElo "2292"]
[BlackElo "1993"]
[Annotator "ChessBase"]
[PlyCount "25"]
[EventDate "2019.10.20"]
[EventType "swiss"]
[EventCountry "GCI"]
[SourceTitle "playchess.com"]
[Source "ChessBase"]
[SourceQuality "1"]
[TimeControl "40/6000+30:2400+30"]

1. d4 {[%emt 0:00:00]} Nf6 {[%emt 0:00:00]} 2. Nf3 {[%emt 0:00:00]} g6 {[%emt 0:00:00]} 3. Bg5 {[%emt 0:00:24]} Bg7 {[%emt 0:00:19]} 4. Nbd2 {[%emt 0:00:21]} d5 {[%emt 0:01:04]} 5. e3 {[%emt 0:00:22]} O-O {[%emt 0:01:23]} 6. Bd3 {[%emt 0:01:07]} c5 {[%emt 0:02:46]} 7. c3 {[%emt 0:00:05]} Qb6 {[%emt 0:02:33]} 8. Rb1 {[%emt 0:01:57]} Nc6 {[%emt 0:00:52]} 9. O-O {[%emt 0:02:03]} Re8 {[%emt 0:05:17]} 10. b4 {[%emt 0:03:58]} cxb4 {[%emt 0:14:45]} 11. cxb4 {[%emt 0:00:14]} Be6 {[%emt 0:08:19]} 12. a3 {[%emt 0:07:08]} Nd7 {[%emt 0:07:27]} 13. Nb3 {[%emt 0:06:28]} 1/2-1/2

[Event "45th Guernsey Open 2019"]
[Site "Vale"]
[Date "2019.10.23"]
[Round "4.5"]
[White "Heppell, Ian N"]
[Black "Reijneveld, Ad"]
[Result "1-0"]
[ECO "B23"]
[WhiteElo "1995"]
[BlackElo "2056"]
[Annotator "NA"]
[PlyCount "49"]
[EventDate "2019.10.20"]
[EventType "swiss"]
[EventCountry "GCI"]
[SourceTitle "playchess.com"]
[Source "ChessBase"]
[SourceQuality "1"]
[TimeControl "40/6000+30:2400+30"]

1. e4 {[%emt 0:00:00]} c5 {[%emt 0:00:00]} 2. Nc3 {[%emt 0:00:00]} Nc6 {[%emt 0:00:00]} 3. f4 {[%emt 0:00:00]} g6 {[%emt 0:00:11]} 4. Nf3 {[%emt 0:00:00]} Bg7 {[%emt 0:00:09]} 5. g3 {[%emt 0:01:35]} e6 {[%emt 0:00:08]} 6. Bg2 {[%emt 0:00:14]} Nge7 {[%emt 0:00:07]} 7. d3 {[%emt 0:01:34]} d6 {[%emt 0:00:55]} 8. O-O {[%emt 0:01:18]} O-O {[%emt 0:00:30]} 9. g4 {[%emt 0:08:01]} f5 {[%emt 0:04:14]} 10. gxf5 {[%emt 0:03:04]} gxf5 {[%emt 0:00:43]} 11. Kh1 {[%emt 0:03:56]} Kh8 {[%emt 0:02:33]} 12. Ng5 {[%emt 0:09:11]} Qe8 {[%emt 0:03:16]} 13. Nb5 {[%emt 0:00:43]} h6 {[%emt 0:08:54]} 14. Nxd6 {[%emt 0:12:13]} Qg6 {[%emt 0:00:37]} 15. Nf3 {[%emt 0:03:01]} e5 {[%emt 0:04:28]} 16. fxe5 {[%emt 0:15:57]} (16. Nxc8 $18 Raxc8 17. Nh4) 16... Nxe5 {[%emt 0:08:57]} 17. Nxc8 $18 {[%emt 0:06:56]} Raxc8 {[%emt 0:00:26]} 18. Bf4 {[%emt 0:04:51]} Nxf3 {[%emt 0:14:32]} 19. Qxf3 {[%emt 0:01:16]} fxe4 {[%emt 0:04:13]} 20. Qxe4 {[%emt 0:00:34]} Qxe4 {[%emt 0:01:08]} 21. Bxe4 {[%emt 0:00:16]} b6 {[%emt 0:04:55]} 22. Bd6 {[%emt 0:04:15]} Rxf1+ {[%emt 0:02:04]} 23. Rxf1 {[%emt 0:00:10]} Ng8 {[%emt 0:00:15]} 24. Rf7 {[%emt 0:02:13]} Rd8 {[%emt 0:03:25]} 25. Be5 {[%emt 0:00:47]} 1-0

[Event "45th Guernsey Open 2019"]
[Site "Vale"]
[Date "2019.10.23"]
[Round "4.6"]
[White "Van den Boogaart, Jan Maarten"]
[Black "Rosen, Daniel B"]
[Result "1-0"]
[ECO "B06"]
[WhiteElo "2039"]
[BlackElo "1990"]
[Annotator "NA"]
[PlyCount "41"]
[EventDate "2019.10.20"]
[EventType "swiss"]
[EventCountry "GCI"]
[SourceTitle "playchess.com"]
[Source "ChessBase"]
[SourceQuality "1"]
[TimeControl "40/6000+30:2400+30"]

{[%evp 8,29,37,45,32767,48,59,52,84,56,60,71,32767,32767,32767,32767,231,32767,410,32767,32767,652,32767,360]} 1. e4 {[%emt 0:00:00]} d6 {[%emt 0:00:00]} 2. d4 {[%emt 0:00:00]} g6 {[%emt 0:00:00]} 3. Nc3 {[%emt 0:00:00]} Bg7 {[%emt 0:00:23]} 4. Be3 {[%emt 0:00:15]} c6 {[%emt 0:00:24]} 5. Qd2 {[%emt 0:00:56]} Nd7 {[%emt 0:00:24]} 6. Nf3 {[%emt 0:00:57]} b5 {[%emt 0:01:59]} 7. Bd3 {[%emt 0:01:33]} Bb7 {[%emt 0:00:19]} 8. O-O {[%emt 0:02:48]} a6 {[%emt 0:08:23]} 9. a4 {[%emt 0:10:22]} e5 {[%emt 0:15:32]} 10. dxe5 {[%emt 0:11:54]} dxe5 {[%emt 0:02:13]} 11. axb5 {[%emt 0:01:46]} axb5 {[%emt 0:00:23]} 12. Bxb5 {[%emt 0:30:28]} cxb5 $18 {[%emt 0:07:35]} (12... Ngf6) 13. Nxb5 {[%emt 0:00:06]} Bf8 {[%emt 0:08:27]} 14. Rxa8 {[%emt 0:04:55]} Bxa8 {[%emt 0:00:15]} 15. Rd1 {[%emt 0:02:11]} Bc6 {[%emt 0:03:44]} 16. Nxe5 {[%emt 0:09:00]} Bxb5 {[%emt 0:01:26]} 17. Qd5 {[%emt 0:01:03]} Qe7 {[%emt 0:06:51]} 18. Qxb5 {[%emt 0:03:52]} Ngf6 {[%emt 0:01:17]} 19. Nc6 {[%emt 0:02:17]} Qe6 {[%emt 0:00:29]} 20. Qb8+ {[%emt 0:00:14]} Nxb8 {[%emt 0:00:11]} 21. Rd8# {[%emt 0:00:09]} 1-0

[Event "45th Guernsey Open 2019"]
[Site "Vale"]
[Date "2019.10.23"]
[Round "4.7"]
[White "Thurlow, Kevin J"]
[Black "Kwossek, Georg"]
[Result "1/2-1/2"]
[ECO "A85"]
[WhiteElo "2021"]
[BlackElo "1984"]
[Annotator "NA"]
[PlyCount "34"]
[EventDate "2019.10.20"]
[EventType "swiss"]
[EventCountry "GCI"]
[SourceTitle "playchess.com"]
[Source "ChessBase"]
[SourceQuality "1"]
[TimeControl "40/6000+30:2400+30"]

1. c4 {[%emt 0:00:00]} f5 {[%emt 0:00:00]} 2. d4 {[%emt 0:00:09]} Nf6 {[%emt 0:00:00]} 3. Nc3 {[%emt 0:00:12]} g6 {[%emt 0:00:17]} 4. g3 {[%emt 0:00:27]} Bg7 {[%emt 0:00:06]} 5. Bg2 {[%emt 0:00:07]} O-O {[%emt 0:00:06]} 6. e3 {[%emt 0:01:22]} d6 {[%emt 0:00:09]} 7. Nge2 {[%emt 0:01:45]} Qe8 {[%emt 0:01:38]} 8. b3 {[%emt 0:03:27]} a5 {[%emt 0:04:05]} 9. Bb2 {[%emt 0:02:06]} Na6 {[%emt 0:00:31]} 10. a3 {[%emt 0:04:56]} Rb8 {[%emt 0:01:23]} 11. h4 {[%emt 0:04:10]} e5 {[%emt 0:01:43]} 12. O-O {[%emt 0:04:24]} h6 {[%emt 0:02:15]} 13. dxe5 {[%emt 0:10:58]} dxe5 $11 {[%emt 0:01:00]} 14. Nd5 {[%emt 0:00:20]} Nd7 {[%emt 0:01:46]} 15. Ndc3 {[%emt 0:11:55]} Nf6 {[%emt 0:03:25]} 16. Nd5 {[%emt 0:17:02]} Nd7 {[%emt 0:00:09]} 17. Ndc3 {[%emt 0:00:07]} g5 1/2-1/2

[Event "45th Guernsey Open 2019"]
[Site "Vale"]
[Date "2019.10.23"]
[Round "4.8"]
[White "Morcom, Huw"]
[Black "Pleasants, Allan J"]
[Result "1/2-1/2"]
[ECO "B40"]
[WhiteElo "1906"]
[BlackElo "2019"]
[Annotator "NA RC"]
[PlyCount "83"]
[EventDate "2019.10.20"]
[EventType "swiss"]
[EventCountry "GCI"]
[SourceTitle "playchess.com"]
[Source "ChessBase"]
[SourceQuality "1"]
[TimeControl "40/6000+30:2400+30"]

1. e4 {[%emt 0:00:00]} c5 {[%emt 0:00:00]} 2. Nf3 {[%emt 0:00:00]} e6 {[%emt 0:00:08]} 3. d3 {[%emt 0:00:19]} Nc6 {[%emt 0:00:09]} 4. Be2 {[%emt 0:00:13]} d6 {[%emt 0:07:46]} (4... Nf6 5. O-O Be7 6. c3 Qc7 7. Qc2 d5 8. Nbd2 Bd7 9. a3 Rc8 10. Re1 O-O 11. Bf1 b5 12. Qb1 {1-0 (50) Tsoi,D (2361)-Iljiushenok,I (2519) St Petersburg 2017}) 5. O-O {[%emt 0:00:07]} Nf6 {[%emt 0:00:36]} 6. Nbd2 {[%emt 0:00:08] B40: Sicilian: 2...e6, Unusual lines} Be7 {[%emt 0:00:50]} 7. Re1 {[%emt 0:00:07]} O-O {[%emt 0:00:19]} 8. Nf1 {[%emt 0:00:06]} Qc7 {[%emt 0:04:46]} 9. Ng3 {[%emt 0:00:08]} Re8 $146 {[%emt 0:05:35]} ({Predecessor:} 9... Bd7 10. Bf4 a6 11. Qd2 Rac8 12. Bf1 {0-1 (45) Jonas,N-Gonzalves,L Santos 2008}) 10. Bf1 {[%emt 0:00:07]} b6 {[%emt 0:04:11]} 11. b3 {[%emt 0:01:28]} Bb7 {[%emt 0:04:05]} 12. Bb2 {[%emt 0:00:08]} e5 {[%emt 0:07:30]} 13. Bc1 {[%emt 0:01:37]} d5 {[%emt 0:14:34]} 14. Bg5 {[%emt 0:03:17]} Rad8 {[%emt 0:09:43]} 15. Qc1 {[%emt 0:04:31]} Bc8 {[%emt 0:10:41]} 16. Qb2 {[%emt 0:01:04]} d4 {[%emt 0:02:34]} 17. h3 {[%emt 0:00:36]} h6 {[%emt 0:01:27]} 18. Bd2 {[%emt 0:00:06]} Bf8 {[%emt 0:03:53]} 19. Re2 {[%emt 0:00:07]} b5 {[%emt 0:01:31]} 20. a4 {[%emt 0:00:37]} a6 {[%emt 0:00:26]} 21. axb5 {[%emt 0:02:39]} axb5 {[%emt 0:00:06]} 22. Nf5 {[%emt 0:01:19]} Be6 {[%emt 0:03:49]} 23. g4 {[%emt 0:00:12]} Ra8 {[%emt 0:05:32]} 24. g5 {[%emt 0:00:26]} Nh5 {[%emt 0:03:19]} 25. gxh6 {[%emt 0:00:24]} g6 {[%emt 0:00:15]} 26. Ng7 {[%emt 0:02:17]} Nxg7 {[%emt 0:01:45]} 27. hxg7 {[%emt 0:00:06]} Bxg7 {[%emt 0:00:31]} 28. Rxa8 {[%emt 0:00:09]} Rxa8 {[%emt 0:00:04]} 29. Ng5 {[%emt 0:00:30]} Bc8 {[%emt 0:01:05]} 30. Qc1 {[%emt 0:01:32]} f6 {[%emt 0:01:27]} 31. Nf3 {[%emt 0:00:15]} Be6 {[%emt 0:00:43]} 32. Nh4 {[%emt 0:00:53]} Ne7 {[%emt 0:02:54]} 33. f4 {[%emt 0:00:19]} c4 {[%emt 0:04:51]} 34. bxc4 {[%emt 0:03:44]} bxc4 {[%emt 0:00:06]} 35. dxc4 {[%emt 0:04:32]} Bxc4 {[%emt 0:00:20]} 36. Rg2 {[%emt 0:00:57]} Bf7 {[%emt 0:05:06]} 37. fxe5 {[%emt 0:00:48]} Qxe5 {[%emt 0:00:47]} 38. Bd3 {[%emt 0:01:14]} Qh5 {[%emt 0:01:14]} 39. Qe1 {[%emt 0:02:20]} g5 {[%emt 0:01:00]} 40. Nf5 {[%emt 0:01:17]} Nxf5 {[%emt 0:00:52]} 41. exf5 {[%emt 0:40:07]} Re8 {[%emt 0:08:29]} 42. Qf2 $17 {[%emt 0:00:00]} 1/2-1/2

[Event "45th Guernsey Open 2019"]
[Site "Vale"]
[Date "2019.10.23"]
[Round "4.10"]
[White "Strade, Arita"]
[Black "Hoogakker, Peter"]
[Result "1/2-1/2"]
[ECO "B07"]
[WhiteElo "1882"]
[BlackElo "1749"]
[Annotator "NA RC"]
[PlyCount "70"]
[EventDate "2019.10.20"]
[EventType "swiss"]
[EventCountry "GCI"]
[SourceTitle "playchess.com"]
[Source "ChessBase"]
[SourceQuality "1"]
[TimeControl "40/6000+30:2400+30"]

1. e4 {[%emt 0:00:00]} d6 {[%emt 0:00:00]} 2. d4 {[%emt 0:00:40]} Nf6 {[%emt 0:00:00]} 3. Nc3 {[%emt 0:01:39]} Nbd7 {[%emt 0:00:54]} 4. Be3 {[%emt 0:05:21]} e5 {[%emt 0:00:58]} 5. Nf3 {[%emt 0:04:35]} c6 {[%emt 0:02:22]} 6. dxe5 {[%emt 0:05:11] B07: Pirc Defence: Miscellaneous Systems} (6. Nd2 exd4 7. Bxd4 Be7 8. Be2 O-O 9. O-O Re8 10. a4 Bf8 11. Re1 Nc5 12. Bf1 d5 13. exd5 Rxe1 14. Qxe1 Nxd5 15. Nxd5 Qxd5 {1-0 (32) Dvoirys,S (2552)-Neuman,P (2442) Pardubice 2017}) 6... dxe5 {[%emt 0:00:32]} 7. a3 {[%emt 0:00:39]} Ng4 $146 {[%emt 0:05:25]} ({Predecessor:} 7... Qc7 8. Bc4 Be7 9. h3 O-O 10. O-O Nc5 11. Nd2 b5 12. Ba2 Ne6 13. Bxe6 Bxe6 {0-1 (46) Van Dijk,G (1739)-Fischer,A (1912) Germany 2017}) 8. Bg5 {[%emt 0:10:22]} Qb6 {[%emt 0:01:59]} 9. Qd2 {[%emt 0:00:58]} h6 {[%emt 0:23:13]} 10. Na4 {[%emt 0:05:03]} Qxf2+ {[%emt 0:03:31]} 11. Qxf2 {[%emt 0:00:29]} Nxf2 {[%emt 0:00:07]} 12. Kxf2 {[%emt 0:00:05]} hxg5 {[%emt 0:00:07]} 13. Nxg5 {[%emt 0:00:24]} b5 {[%emt 0:03:03]} 14. Nc3 {[%emt 0:00:34]} Bc5+ {[%emt 0:00:14]} 15. Kg3 {[%emt 0:01:25]} Nf6 {[%emt 0:06:31]} 16. Be2 {[%emt 0:04:46]} Rh6 {[%emt 0:05:34]} 17. h4 {[%emt 0:02:29]} Be3 {[%emt 0:04:23]} 18. Rad1 {[%emt 0:07:50]} Rg6 {[%emt 0:05:16]} 19. Rd3 {[%emt 0:08:52]} Bd4 {[%emt 0:02:40]} 20. Kh2 {[%emt 0:03:44]} Bg4 {[%emt 0:03:08]} 21. Bf3 {[%emt 0:05:34]} O-O-O {[%emt 0:03:13]} 22. Nxf7 {[%emt 0:05:21]} Rd7 {[%emt 0:05:51]} 23. Ng5 {[%emt 0:00:39]} Rd8 {[%emt 0:00:27]} 24. Kg3 {[%emt 0:08:29]} Bxf3 {[%emt 0:02:24]} 25. Kxf3 {[%emt 0:02:45]} Nh5 {[%emt 0:02:46]} (25... Rh8 $11 {remains equal.}) 26. g3 {[%emt 0:01:12]} Rf6+ {[%emt 0:04:47]} 27. Kg4 {[%emt 0:02:28]} g6 {[%emt 0:00:33]} 28. Nf3 {[%emt 0:01:59]} a6 {[%emt 0:09:47]} 29. b3 {[%emt 0:01:29]} c5 {[%emt 0:01:28]} 30. Ne2 {[%emt 0:00:45]} Rdf8 {[%emt 0:01:47]} 31. c4 {[%emt 0:08:06]} ({Inferior is} 31. Nfxd4 cxd4 32. Re1 Rf2 $15) (31. Nexd4 $18 exd4 32. e5) 31... bxc4 $14 {[%emt 0:02:05]} 32. bxc4 {[%emt 0:00:10]} Rb6 {[%emt 0:00:36]} 33. Nexd4 {[%emt 0:01:03]} Nf6+ {[%emt 0:01:37]} 34. Kh3 {[%emt 0:02:22]} Nxe4 {[%emt 0:01:09]} 35. Rh2 {[%emt 0:01:27]} exd4 {[%emt 0:00:51]} 1/2-1/2